Cogmind - Beta 14 @@@ ROGUE MODE // 2024.10.26 @ 22:25:23 Player: MadBadger Result: Destroyed by G-47 Trooper with Particle Gun Performance ------------- Evolutions (1) 500 Regions Visited (3) 600 Robots Destroyed (57) 285 Value Destroyed (1540) 1540 Prototype IDs (3) 60 Alien Tech Used (0) 0 Bonus (0) 0 TOTAL SCORE: 2985 Bonus ------- None Cogmind --------- Core Integrity 0/400 Matter 235/300 Energy 265/265 System Corruption 1% Temperature Cool (28) Movement Treading (240) Ox1 Location -9/Mines Parts ------- > --- POWER (1) -------- Improved Ion Engine > --- PROPULSION (3) --- Light Treads Light Treads > --- UTILITY (2) ------ High-capacity Storage Unit > --- WEAPON (3) ------- Grenade Launcher > --- INVENTORY (20) --- Light Nuclear Core Aluminum Leg Aluminum Leg Wheel Visual Processing Unit Sensor Array Signal Interpreter Signal Interpreter Seismic Detector Small Laser Small Laser Beam Cannon Beam Cannon Particle Cannon Assault Rifle Light Assault Rifle Light Assault Rifle Light Assault Rifle Light Cannon Mini Grenade Launcher Peak State ------------ > --- POWER ------------ Light Nuclear Core > --- PROPULSION ------- Aluminum Leg Aluminum Leg Improved Aluminum Leg > --- UTILITY ---------- High-capacity Storage Unit Terrain Scan Processor > --- WEAPON ----------- Improved EM Shotgun Heavy Assault Rifle Heavy Assault Rifle > --- INVENTORY -------- Light Nuclear Core Visual Processing Unit Sensor Array Signal Interpreter Signal Interpreter Small Laser Small Laser Beam Cannon Beam Cannon Particle Cannon Assault Rifle Light Assault Rifle [Rating: 18] Favorites ----------- Power Light Nuclear Core Engine Light Ion Engine Power Core Light Nuclear Core Propulsion Aluminum Leg Treads Light Treads Leg Aluminum Leg Wheel Wheel Utility Large Storage Unit Storage Large Storage Unit Processor Signal Interpreter Weapon Heavy Assault Rifle Energy Gun Heavy EM Pulse Gun Energy Cannon Beam Cannon Ballistic Gun Heavy Assault Rifle Ballistic Cannon Light Cannon Launcher Grenade Launcher Special Melee Weapon Datajack Build | -11 -10 -9 -9 ------- Run | Yrd Mat Mat Min Slots Evolved 2 | . . 2 . Power . | . . . . Propulsion 1 | . . 1 . Utility . | . . . . Weapon 1 | . . 1 . Parts Attached 63 | 6 23 25 9 Power 8 | 2 2 3 1 Engine 6 | 2 2 1 1 Core 2 | . . 2 . Reactor . | . . . . Propulsion 22 | 2 6 8 6 Treads 2 | . . . 2 Leg 15 | . 6 8 1 Wheel 5 | 2 . . 3 Hover . | . . . . Flight . | . . . . Utility 7 | . 4 2 1 Device . | . . . . Storage 4 | . 2 1 1 Processor 3 | . 2 1 . Hackware . | . . . . Protection . | . . . . Artifact . | . . . . Weapon 26 | 2 11 12 1 Energy Gun 6 | 2 1 3 . Energy Cannon 2 | . 1 1 . Ballistic Gun 10 | . 3 7 . Ballistic Cannon 3 | . 3 . . Launcher 1 | . . . 1 Special Weapon . | . . . . Impact Weapon . | . . . . Slashing Weapon . | . . . . Piercing Weapon . | . . . . Special Melee Weapon 4 | . 3 1 . Unidentified Prototypes 3 | . . 3 . Parts Lost 30 | . 8 17 5 Power 4 | . 2 2 . Propulsion 14 | . 3 8 3 Utility . | . . . . Weapon 12 | . 3 7 2 Highest Loss Streak 6 | . 3 6 4 To Critical Strikes . | . . . . Average Slot Usage (%) 81 | . 78 91 70 Engine 5 | . 8 . 7 Core 3 | . . 9 . Treads 1 | . . . 6 Leg 20 | . 20 30 4 Wheel 3 | . 3 . 9 Storage 11 | . 12 11 11 Processor 9 | . 9 11 5 Energy Gun 3 | . 1 6 . Energy Cannon 3 | . . 7 . Ballistic Gun 15 | . 15 14 17 Ballistic Cannon 1 | . 3 . . Launcher 1 | . . . 9 Special Melee Weapon 1 | . 2 . . Peak Build Rating 18 | 5 8 18 16 Average Rating 9 | 3 6 13 11 On Entrance 5 | . 5 7 9 Naked Turns . | . . . . Heaviest Build 88 | 8 88 54 56 Greatest Support 40 | 20 20 33 40 Greatest Overweight (x) 17 | . 6 8 17 Average Overweight (x) 1 | . . . 1 Largest Inventory Capacity 25 | 5 25 20 20 Average Capacity 15 | 5 13 16 20 Most Carried 20 | 4 14 15 20 Average Carried 11 | 1 9 11 15 Final Capacity 20 | 5 15 20 20 Final Carried 20 | 4 10 12 20 Class Distribution -------------------- 43% | Mutant 24% | Scavenger-Gunner 21% | Scavenger-Mutant 9% | Gunner Dominant Class ---------------- Mutant | -10/Materials Scavenger-Gunner | -9/Materials Mutant | -9/Mines Resources | -11 -10 -9 -9 ----------- Run | Yrd Mat Mat Min Matter Collected 1312 | 260 358 481 213 Remotely . | . . . . Salvage Created 1795 | 50 451 1025 269 Parts 137 | 1 46 66 24 Haulers Intercepted . | . . . . Recyclers Shooed 2 | . 1 1 . Parts Field Recycled . | . . . . Retrieved Matter . | . . . . Parts Self-Destructed . | . . . . Prevented . | . . . . Kills | -11 -10 -9 -9 ------- Run | Yrd Mat Mat Min Combat Hostiles Destroyed 45 | 1 12 23 9 Guns 28 | 1 10 13 4 Cannons 11 | . 2 9 . AOE 6 | . . 1 5 Classes Destroyed 9 | 1 3 4 1 Worker 1 | . . 1 . Builder 4 | . . 1 3 Operator 1 | . 1 . . Watcher 6 | . 3 3 . Swarmer 12 | . 3 6 3 Grunt 23 | 1 9 10 3 Brawler 1 | . . . 1 Duelist 1 | . . 1 . Sentry 8 | . . 6 2 Best Kill Streak 6 | 1 2 5 6 Combat Bots Only 5 | 1 2 3 5 Max Kills in Single Turn 2 | 1 1 2 2 Gunslinging . | . . . . Exploded 2 | . . 1 2 Melee . | . . . . Uniques/NPCs Destroyed . | . . . . Combat | -11 -10 -9 -9 -------- Run | Yrd Mat Mat Min Hostile Shots Fired 344 | 8 110 186 40 Missed 94 | 4 32 47 11 Damage Taken 3172 | 45 913 1820 394 Core 555 | 11 140 332 72 Absorbed by Shields . | . . . . Core Remaining (%) 67 | 95 39 . . Volleys Fired 186 | 5 84 76 21 Largest 3 | 2 2 3 3 Hottest 136 | 90 90 136 76 Shots Fired 369 | 10 133 186 40 Gun 281 | 10 115 128 28 Cannon 76 | . 18 58 . Launcher 12 | . . . 12 Special . | . . . . Kinetic 250 | . 125 97 28 Thermal 82 | 10 3 69 . Explosive 12 | . . . 12 Electromagnetic 25 | . 5 20 . Robot Hit Streak 22 | 2 22 11 5 Robot Miss Streak 5 | 2 4 5 3 Penetration Max . | . . . . Secondary Targets 1 | . . 1 . Max Gunslinging Chain 1 | . . 1 . Shots Hit Robots 230 | 5 94 112 19 Core Hits 104 | 2 35 44 23 Critical Kills 1 | . . 1 . Critical Parts Destroyed . | . . . . Critical Strikes 2 | . 1 1 . Meltdown 1 | . . 1 . Blast 1 | . 1 . . Melee Attacks 6 | . 6 . . Impact . | . . . . Slashing . | . . . . Piercing . | . . . . Sneak Attacks 6 | . 6 . . Combat Hostiles . | . . . . Follow-up Attacks . | . . . . Damage Inflicted 3555 | 58 864 1920 713 Guns 2023 | 58 677 1106 182 Cannons 892 | . 187 705 . Explosions 640 | . . 109 531 Melee . | . . . . Ramming . | . . . . Kinetic 1810 | . 842 786 182 Thermal 1004 | 58 12 934 . Explosive 531 | . . . 531 Electromagnetic 210 | . 10 200 . Impact . | . . . . Slashing . | . . . . Piercing . | . . . . Highest Corruption 2 | . 2 1 1 Average Corruption 1 | . 2 1 1 Corruption Purged . | . . . . Corruption Blocked . | . . . . Effects 26 | . 3 14 9 Message Errors 9 | . 1 5 3 Matter Fused 3 | . . 2 1 Heat Flow Errors 5 | . . 1 4 Energy Discharges 2 | . . 2 . Data Loss (minor) 2 | . 1 . 1 Data Loss (major) 1 | . . 1 . Misfires 2 | . . 2 . Alerts 1 | . 1 . . Weapon Failures 1 | . . 1 . Overload Shots . | . . . . Overflow Damage 37 | . . 29 8 Projectiles . | . . . . Explosions 37 | . . 29 8 Melee . | . . . . Knockbacks 4 | . 4 . . Impact . | . . . . Kinetic 3 | . 3 . . Secondary 1 | . 1 . . Self-Inflicted Damage 88 | . . 40 48 Shots 3 | . . 1 2 Rammed . | . . . . Targets Rammed . | . . . . Kicked . | . . . . Crushed . | . . . . Highest Temperature 353 | 134 49 353 269 Average Temperature 78 | 70 12 98 81 Received Heat Transfer 1284 | 24 498 609 153 Effects 2 | . . 2 . Shutdowns 1 | . . 1 . Energy Bleed 1 | . . 1 . Siege Activations . | . . . . Robots Corrupted . | . . . . Combat Hostiles . | . . . . Parts Fried . | . . . . Impact Corruptions . | . . . . Robots Melted 1 | . . 1 . Combat Hostiles . | . . . . Parts Melted 6 | 2 . 4 . Heat Transferred 1914 | 149 37 1728 . Parts Sabotaged . | . . . . Parts Stolen . | . . . . Parts Stripped . | . . . . Power Chain Reactions 2 | . . 2 . Alert | -11 -10 -9 -9 ------- Run | Yrd Mat Mat Min Peak Influence 238 | 20 238 214 217 Initial 55 | . 13 8 55 Average 65 | 1 35 101 65 Maximum Alert Level 1 | . 1 1 1 Low Security (%) 96 | 100 99 92 96 Level 1 3 | . . 7 3 Level 2 . | . . . . Level 3 . | . . . . Level 4 . | . . . . Level 5 . | . . . . High Security . | . . . . Max Security . | . . . . Squads Dispatched 5 | . 2 3 . Investigation 2 | . 1 1 . Extermination . | . . . . Reinforcement 3 | . 1 2 . Assault . | . . . . Garrison . | . . . . Intercept . | . . . . Searches Triggered . | . . . . Construction Impeded . | . . . . Haulers Reinforced . | . . . . Active Scanning Responses . | . . . . Cargo Convoy Interrupts . | . . . . Stealth | -11 -10 -9 -9 --------- Run | Yrd Mat Mat Min Distress Signals 4 | . 1 3 . Communications Jammed . | . . . . Distress Signals . | . . . . Times Spotted 79 | 1 28 39 11 Peak Tracking Total 5 | 1 3 5 5 Tactical Retreats 5 | . 4 1 . Traps | -11 -10 -9 -9 ------- Run | Yrd Mat Mat Min Traps Triggered 6 | . 2 4 . Indirectly . | . . . . Trap Hack Attempts 90 | . 88 2 . Triggered . | . . . . Disarmed 1 | . 1 . . Reprogrammed 8 | . 7 1 . Reused 1 | . 1 . . Traps Extracted . | . . . . Installed . | . . . . Triggered 1 | . 1 . . Machines | -11 -10 -9 -9 ---------- Run | Yrd Mat Mat Min Machines Disabled 3 | . . 2 1 Max in Single Turn 1 | . . 1 1 Machines Repaired . | . . . . Machines Dismantled . | . . . . Machines Sabotaged . | . . . . Overloaded Fab Kills . | . . . . Hacking | -11 -10 -9 -9 --------- Run | Yrd Mat Mat Min Machines Accessed 1 | . . 1 . Terminals . | . . . . Fabricators . | . . . . Repair Stations . | . . . . Recycling Units . | . . . . Scanalyzers 1 | . . 1 . Garrison Access . | . . . . Total Hacks 3 | . . 3 . Successful 2 | . . 2 . Failed 1 | . . 1 . Catastrophic . | . . . . Database Lockouts . | . . . . Manual . | . . . . Terminals . | . . . . Fabricators . | . . . . Repair Stations . | . . . . Recycling Units . | . . . . Scanalyzers 3 | . . 3 . Garrison Access . | . . . . Terminal Hacks . | . . . . Fabricator Hacks . | . . . . Repair Station Hacks . | . . . . Recycling Unit Hacks . | . . . . Scanalyzer 2 | . . 2 . Insert Component 1 | . . 1 . Analyze 1 | . . 1 . Garrison Access Hacks . | . . . . Unauthorized Hacks . | . . . . Terminals . | . . . . Fabricators . | . . . . Repair Stations . | . . . . Recycling Units . | . . . . Scanalyzers . | . . . . Garrison Access . | . . . . Data Cores Recovered . | . . . . Used . | . . . . Hacking Detections 1 | . . 1 . Full Trace Events . | . . . . Feedback Events . | . . . . Feedback Blocked . | . . . . Robot Schematics Acquired . | . . . . Robots Built . | . . . . Authchips . | . . . . Time . | . . . . Total Robot Build Rating . | . . . . Part Schematics Acquired 1 | . . 1 . Parts Built . | . . . . Authchips . | . . . . Time . | . . . . Total Part Build Rating . | . . . . Parts Repaired . | . . . . Time . | . . . . Parts Recycled . | . . . . Recycled Matter . | . . . . Retrieved Matter . | . . . . Retrieved Components . | . . . . Parts Scanalyzed 1 | . . 1 . Part Schematics Acquired 1 | . . 1 . Parts Damaged . | . . . . Bothacking | -11 -10 -9 -9 ------------ Run | Yrd Mat Mat Min Used RIF Installer . | . . . . Robots Hacked 1 | . 1 . . Non-combat 1 | . 1 . . Combat . | . . . . Robot Hacks Applied 2 | . 2 . . parse_system 1 | . 1 . . no_distress 1 | . 1 . . Relay Couplers Released . | . . . . Fabnet Peak Effective % . | . . . . Robots Rewired . | . . . . Allies Hacked . | . . . . Hacks Repelled . | . . . . Allies | -11 -10 -9 -9 -------- Run | Yrd Mat Mat Min Total Allies . | . . . . Largest Group . | . . . . Highest-Rated Group . | . . . . Highest-Rated Ally . | . . . . Total Orders . | . . . . Ally Attacks . | . . . . Total Damage . | . . . . Kills . | . . . . Allies Corrupted . | . . . . Allies Melted . | . . . . Intel | -11 -10 -9 -9 ------- Run | Yrd Mat Mat Min Robot Analysis Total . | . . . . Derelict Logs Recovered 1 | . . . 1 Drone Launches . | . . . . Drone Recoveries . | . . . . Exploration | -11 -10 -9 -9 ------------- Run | Yrd Mat Mat Min Turns Passed 5907 | 107 2399 2176 1225 Spaces Moved 2773 | 109 1135 970 559 Core 42 | 23 1 11 7 Treads 151 | . . . 151 Legs 1884 | . 841 959 84 Wheels 696 | 86 293 . 317 Hover . | . . . . Flight . | . . . . Fastest Speed 50 | 50 80 120 105 Average Speed 179 | 73 174 186 199 Slowest Speed 900 | 80 350 450 900 Overloaded Moves . | . . . . Propulsion Burnouts . | . . . . Robots Hopped . | . . . . Cave-ins Triggered . | . . . . Exploration Rate (%) 57 | 5 71 61 94 Regions Visited 3 Branch Regions 1 Pre-discovered Areas . | . . . . Known Exits Taken 1 | . 1 . . Unknown Exits Taken 2 | 1 . 1 . Scrap Searched 2 | . . . 2 Spaces Dug . | . . . . Terrain Destroyed 89 | . . 11 78 Melee . | . . . . Projectile 2 | . . 2 . AOE 87 | . . 9 78 Terrain Rammed . | . . . . Walls Destroyed . | . . . . Machines Disabled . | . . . . Actions | -11 -10 -9 -9 --------- Run | Yrd Mat Mat Min Total 3383 | 122 1439 1191 631 Wait 204 | . 73 100 31 Move 2770 | 108 1134 969 559 Hop . | . . . . Pick Up 29 | 3 12 8 6 Fast Attach 38 | 5 11 13 9 Attach 21 | . 10 11 . Detach 21 | . 10 7 4 Swap 5 | 1 2 2 . Drop 13 | . 9 3 1 Fire 186 | 5 84 76 21 Melee 6 | . 6 . . Ram . | . . . . Kick . | . . . . Crush . | . . . . Escape Stasis . | . . . . Rewire . | . . . . Trap 90 | . 88 2 . Miscellaneous . | . . . . Route ------- -11/Scrapyard -10/Materials (discovered 2 exits: *Mat / *Min) -9/Materials (discovered 3 exits: [*Mat] / [*Min x2]) -9/Mines (discovered 2 exits: [*Mat] / Exi) History --------- Turn | Location | Event 2 | -11/Scrapyard | Met Revision 17 77 | -11/Scrapyard | Discovered new exit (range 8) 108 | -11/Scrapyard | Entered Materials 314 | -10/Materials | Build established: Mutant 583 | -10/Materials | Discovered new exit (range 5) 592 | -10/Materials | Identified exit to Materials 1871 | -10/Materials | Discovered new exit (range 15) 1963 | -10/Materials | Identified exit to Mines 2062 | -10/Materials | Core integrity fell below 50% 2094 | -10/Materials | Lost 3 parts (1p1n1w) 2371 | -10/Materials | Build established: Scavenger-Mutant 2507 | -10/Materials | Entered another Materials area 2507 | -9/Materials | Evolved 2 slots: Propulsion x1, Weapon x1 3331 | -9/Materials | Discovered new exit (range 15) 3425 | -9/Materials | Build established: Scavenger-Gunner 3777 | -9/Materials | Discovered new exit (range 7) 3857 | -9/Materials | Lost 6 parts (1p3n2w) 4229 | -9/Materials | Discovered new exit (range 4) 4356 | -9/Materials | Core integrity fell below 50% 4671 | -9/Materials | Core integrity fell below 20% 4683 | -9/Materials | Entered Mines 4700 | -9/Mines | Lost 3 parts (2n1w) 4862 | -9/Mines | YI-UF0 nonchalantly dropped a Grenade Launcher on the ground 5056 | -9/Mines | Discovered new exit (range 4) 5166 | -9/Mines | Build established: Gunner 5464 | -9/Mines | Lost 4 parts (3n1w) 5867 | -9/Mines | Identified exit to Exiles 5908 | -9/Mines | Destroyed by G-47 Trooper with Particle Gun Last Messages --------------- 05631_ U-05 Engineer builds a Wall. 05633_ K-01 Serf collects debris. 05635_ U-05 Engineer builds a Wall. 05641_ U-05 Engineer lays Concrete. 05644_ System corrupted: Heat flow error (+289). 05644_ U-05 Engineer builds a Wall. 05645_ U-05 Engineer lays Concrete. 05653_ U-05 Engineer builds a Wall. 05654_ U-05 Engineer lays Concrete. 05782_ WY# 8L HLG %XQ3FFTYXG>E3X1,YBD